bitfinex/quotes_BTCUSD_20251024
["timestamp","ask_amount","ask_price","bid_price","bid_amount"]
[1761307127855,0.48816742,111070.0,111060.0,0.1608055]
[1761307128065,0.48816742,111070.0,111060.0,0.0014855]
[1761307128262,0.48816742,111070.0,111060.0,0.18156833]
[1761307128473,0.48816742,111070.0,111060.0,0.34088833]
[1761307128705,0.48816742,111070.0,111060.0,0.1608055]
[1761307129299,0.48816742,111070.0,111060.0,0.0014855]
[1761307129557,0.48816742,111070.0,111060.0,0.1608055]
[1761307129765,0.48816742,111070.0,111060.0,0.34088833]
[1761307130568,0.18006662,111070.0,111060.0,0.34088833]
[1761307133482,0.18006662,111070.0,111060.0,0.1608055]
[1761307133684,0.18006662,111070.0,111060.0,0.34088833]
[1761307135195,0.18006662,111070.0,111060.0,0.1608055]
[1761307137390,0.18006662,111070.0,111060.0,0.34088833]
[1761307139614,0.18006662,111070.0,111060.0,0.1608055]
[1761307140229,0.18006662,111070.0,111060.0,0.34088833]
[1761307140787,0.18006662,111070.0,111060.0,0.1608055]
[1761307140990,0.36639817,111080.0,111060.0,0.64898913]
[1761307141189,0.18006662,111070.0,111060.0,0.64898913]
[1761307141634,0.18006662,111070.0,111060.0,0.4689063]
[1761307141846,0.18006662,111070.0,111060.0,0.64798913]
[1761307142016,0.18006662,111070.0,111060.0,0.64898913]
[1761307142213,0.51287139,111080.0,111060.0,0.64898913]
[1761307142413,0.18006662,111070.0,111060.0,0.33988833]
[1761307142616,0.18006662,111070.0,111060.0,0.34088833]
[1761307144644,0.18006662,111070.0,111060.0,0.18156833]
[1761307144794,0.18006662,111070.0,111060.0,0.34088833]
[1761307146266,0.18006662,111070.0,111060.0,0.1608055]
[1761307147378,0.48816742,111070.0,111060.0,0.34088833]
[1761307147710,0.48816742,111070.0,111060.0,0.18156833]
[1761307147912,0.18006662,111070.0,111060.0,0.34088833]
[1761307149515,0.18006662,111070.0,111060.0,0.1608055]
[1761307149666,0.18006662,111070.0,111060.0,0.0014855]
[1761307149869,0.18006662,111070.0,111060.0,0.1608055]
[1761307150094,0.48816742,111070.0,111060.0,0.1608055]
[1761307150297,0.48816742,111070.0,111060.0,0.0014855]
[1761307151977,0.46258992,111070.0,111060.0,0.0014855]
[1761307152163,0.47164343,111070.0,111060.0,0.0014855]
[1761307153185,0.46258992,111070.0,111060.0,0.0014855]
[1761307153390,0.46258992,111070.0,111060.0,0.18156833]
[1761307153693,0.18006662,111070.0,111060.0,0.18156833]
[1761307155021,0.18006662,111070.0,111060.0,0.48966913]
[1761307155306,0.18006662,111070.0,111060.0,0.18156833]
[1761307158306,0.18006662,111070.0,111060.0,0.34088833]
[1761307158654,0.17774283,111080.0,111060.0,0.34088833]
[1761307158881,0.28693347,111080.0,111060.0,0.34088833]
[1761307159571,0.28693347,111080.0,111060.0,0.33988833]
[1761307159756,0.28693347,111080.0,111060.0,0.34088833]
[1761307160821,0.18006662,111070.0,111060.0,0.34088833]
[1761307160986,0.26756184,111080.0,111060.0,0.34088833]
[1761307161189,0.28693274,111080.0,111060.0,0.34088833]
[1761307161689,0.32311502,111080.0,111070.0,0.18006662]
[1761307162835,0.32411502,111080.0,111070.0,0.18006662]
[1761307164857,0.19811373,111080.0,111060.0,0.33988833]
[1761307165342,0.19811373,111080.0,111070.0,0.05]
[1761307165798,0.19711373,111080.0,111070.0,0.05]
[1761307166597,0.19711373,111080.0,111070.0,0.23006662]
[1761307166948,0.19811373,111080.0,111070.0,0.23006662]
[1761307169023,0.1981125,111080.0,111070.0,0.23006662]
[1761307181707,0.17874283,111080.0,111070.0,0.23006662]
[1761307184135,0.001,111080.0,111070.0,0.23006662]
[1761307184342,0.001,111080.0,111070.0,0.53820199]
[1761307184573,0.001,111080.0,111070.0,0.23006662]
[1761307185562,0.001,111080.0,111070.0,0.23106662]
[1761307187001,0.52003615,111090.0,111080.0,0.18005041]
[1761307187166,0.53940129,111090.0,111080.0,0.33933041]
[1761307187575,0.84753666,111090.0,111080.0,0.15928]
[1761307188641,0.84753666,111090.0,111070.0,0.18005901]
[1761307188642,0.18005041,111080.0,111070.0,0.18005901]
[1761307188879,0.18005041,111080.0,111070.0,0.33933901]
[1761307191185,0.18005041,111080.0,111070.0,0.34033901]
[1761307192671,0.91799053,111090.0,111070.0,0.34033901]
[1761307192876,0.18005041,111080.0,111070.0,0.34029901]
[1761307194074,0.18005041,111080.0,111070.0,0.33929901]
[1761307194276,0.18005041,111080.0,111070.0,0.34029901]
[1761307194677,0.91799053,111090.0,111070.0,0.33929901]
[1761307194893,0.18005041,111080.0,111070.0,0.33929901]
[1761307195102,0.18005041,111080.0,111070.0,0.34029901]
[1761307195497,0.18005041,111080.0,111070.0,0.39029901]
[1761307196344,0.91799053,111090.0,111070.0,0.39029901]
[1761307196536,0.93735245,111090.0,111070.0,0.39029901]
[1761307196762,0.18005041,111080.0,111070.0,0.39029901]
[1761307197290,0.18005041,111080.0,111070.0,0.38929901]
[1761307197734,0.18005041,111080.0,111070.0,0.39029901]
[1761307197934,0.18005041,111080.0,111070.0,0.38929901]
[1761307198243,0.18005041,111080.0,111070.0,0.39029901]
[1761307198603,0.91799053,111090.0,111070.0,0.39029901]
[1761307198903,0.62921732,111090.0,111070.0,0.39029901]
[1761307199256,0.18005041,111080.0,111070.0,0.39029901]
[1761307200409,0.60985516,111090.0,111070.0,0.38929901]
[1761307200648,0.60985516,111090.0,111080.0,0.18005041]
[1761307200649,0.12600129,111090.0,111080.0,0.18005041]
[1761307200866,0.12600129,111090.0,111080.0,0.23765041]
[1761307201317,0.001,111100.0,111090.0,0.1800342]
[1761307201552,0.09081901,111100.0,111090.0,0.3392742]
[1761307201774,0.001,111100.0,111090.0,0.3392742]
[1761307201992,0.001,111100.0,111090.0,0.36629399]
[1761307202213,0.001,111100.0,111090.0,0.67442936]
[1761307202668,0.001,111100.0,111090.0,0.20705399]
[1761307202881,0.001,111100.0,111090.0,0.42389399]
[1761307203094,0.001,111100.0,111090.0,0.20705399]
[1761307203310,0.001,111100.0,111090.0,0.42389399]
[1761307204315,0.001,111100.0,111090.0,0.42489399]
[1761307206432,0.001,111100.0,111090.0,0.3978742]
[1761307206660,0.001,111100.0,111090.0,0.70600957]
[1761307209072,0.001,111100.0,111090.0,0.79582858]
[1761307209538,0.001,111100.0,111090.0,1.11319458]
[1761307209761,0.001,111100.0,111090.0,0.79582858]
[1761307210197,0.001,111100.0,111090.0,1.11290062]
[1761307210608,0.001,111100.0,111090.0,1.11190062]
[1761307210806,0.001,111100.0,111090.0,1.11390062]
[1761307211704,0.001,111100.0,111090.0,1.11190062]
[1761307211899,0.001,111100.0,111090.0,1.11590062]
[1761307212321,0.001,111100.0,111090.0,1.10696395]
[1761307212740,0.001,111100.0,111090.0,1.10796395]
[1761307214643,0.001,111100.0,111090.0,1.13497723]
[1761307215086,0.001,111100.0,111090.0,0.82672186]
[1761307216220,0.001,111100.0,111090.0,1.13485723]
[1761307216871,0.001,111100.0,111090.0,1.07729723]
[1761307217082,0.001,111100.0,111090.0,1.13485723]
[1761307218000,0.0004,111130.0,111120.0,0.1799856]
[1761307218212,0.0004,111130.0,111120.0,0.72283953]
[1761307218430,0.0004,111130.0,111120.0,0.70484097]
[1761307218658,0.0004,111130.0,111120.0,0.7318508]
[1761307218898,0.0004,111130.0,111120.0,1.03917509]
[1761307219114,0.00048739,111130.0,111120.0,0.73144526]
[1761307219778,0.00048739,111130.0,111120.0,0.73244526]
[1761307220008,0.00048739,111130.0,111120.0,0.42471543]
[1761307220232,0.00048739,111130.0,111120.0,0.73244526]
[1761307221140,0.00048739,111130.0,111120.0,1.04017509]
[1761307221396,0.00048739,111130.0,111120.0,1.1299941]
[1761307221810,0.00048739,111130.0,111120.0,0.82226427]
[1761307222012,0.00048739,111130.0,111120.0,1.1299941]
[1761307223235,0.00048739,111130.0,111120.0,1.1289941]
[1761307223438,0.00048739,111130.0,111120.0,1.1309941]
[1761307223635,0.00150503,111130.0,111120.0,1.1309941]
[1761307225339,0.00150503,111130.0,111120.0,1.10398427]
[1761307225531,0.00150503,111130.0,111120.0,1.10758532]
[1761307227569,0.00150503,111130.0,111120.0,0.79985549]
[1761307227781,0.00150503,111130.0,111120.0,0.27540566]
[1761307228018,0.00150503,111130.0,111120.0,0.3986656]
[1761307228215,0.00150503,111130.0,111120.0,0.1819856]
[1761307228421,0.00150503,111130.0,111120.0,0.3986656]
[1761307229031,0.00150503,111130.0,111120.0,0.70639543]
[1761307230098,0.00150503,111130.0,111120.0,0.70439543]
[1761307230308,0.00150503,111130.0,111120.0,0.70539543]
[1761307231412,0.00150503,111130.0,111120.0,0.1809856]
[1761307231628,0.00150503,111130.0,111120.0,0.3976656]
[1761307232910,0.00150503,111130.0,111120.0,0.3976256]
[1761307233331,0.30923486,111130.0,111120.0,0.3400656]
[1761307233537,0.30923486,111130.0,111120.0,0.3976256]
[1761307233738,0.00150503,111130.0,111120.0,0.3976256]
[1761307234309,0.00150503,111130.0,111120.0,0.1809856]
[1761307234514,0.30923486,111130.0,111120.0,0.1809856]
[1761307234714,0.30923486,111130.0,111120.0,0.3400656]
[1761307235117,0.30923486,111130.0,111120.0,0.1809856]
[1761307235118,0.48920426,111130.0,111120.0,0.1809856]
[1761307235323,0.48920426,111130.0,111120.0,0.3400656]
[1761307235729,0.48920426,111130.0,111120.0,0.1809856]
[1761307235932,0.18147443,111130.0,111120.0,0.16008]
[1761307236169,0.48920426,111130.0,111120.0,0.3400656]
[1761307237225,0.18147443,111130.0,111120.0,0.3400656]
[1761307237417,0.48920426,111130.0,111120.0,0.3400656]
[1761307237665,0.48920426,111130.0,111120.0,0.3390656]
[1761307237926,0.49020426,111130.0,111120.0,0.3390656]
[1761307238945,0.00250503,111130.0,111120.0,0.3390656]
[1761307239210,0.86386693,111140.0,111120.0,0.3390656]
[1761307239419,0.97304415,111140.0,111120.0,0.3390656]
[1761307240260,0.97304415,111140.0,111120.0,0.1799856]
[1761307240447,0.97404415,111140.0,111120.0,0.3390656]
[1761307240600,0.97404415,111140.0,111120.0,0.1799856]
[1761307241232,0.97404415,111140.0,111130.0,0.1799694]
[1761307241705,0.97438329,111140.0,111130.0,0.1799694]
[1761307242631,0.36069735,111140.0,111130.0,0.1799694]
[1761307242853,0.34133914,111140.0,111130.0,0.1799694]
[1761307243519,0.34033914,111140.0,111130.0,0.1799694]
[1761307243732,0.34133914,111140.0,111130.0,0.1799694]
[1761307244169,0.34033914,111140.0,111130.0,0.1799694]
[1761307247046,0.52029235,111140.0,111130.0,0.1799694]
[1761307247446,0.5396571,111140.0,111130.0,0.1799694]
[1761307247690,0.52029235,111140.0,111130.0,0.1799694]
[1761307248355,0.52020236,111140.0,111130.0,0.1799694]
[1761307248952,0.34024915,111140.0,111130.0,0.1799694]
[1761307249150,0.35961404,111140.0,111130.0,0.1799694]
[1761307249950,0.34024915,111140.0,111130.0,0.1799694]
[1761307250152,0.00033914,111140.0,111130.0,0.1799694]
[1761307250355,0.00033914,111140.0,111130.0,0.48769923]
[1761307251364,0.03618228,111150.0,111140.0,0.17995321]
[1761307251575,0.03623078,111150.0,111140.0,0.33903321]
[1761307252020,0.00038758,111150.0,111140.0,0.33903321]
[1761307252141,0.00038758,111150.0,111140.0,0.64676304]
[1761307252545,0.00038758,111150.0,111140.0,0.33903321]
[1761307255482,0.00038758,111150.0,111140.0,0.64676304]
[1761307256679,0.00038758,111150.0,111140.0,0.33903321]
[1761307257083,0.00038758,111150.0,111140.0,0.64676304]
[1761307257446,0.00038758,111150.0,111140.0,0.69676304]
[1761307258058,0.00038758,111150.0,111140.0,0.38903321]
[1761307258443,0.00038758,111150.0,111140.0,0.69676304]
[1761307259403,0.00038758,111150.0,111140.0,0.38903321]
[1761307259776,0.00038758,111150.0,111140.0,0.69676304]
[1761307261378,0.00038758,111150.0,111140.0,0.38903321]
[1761307261839,0.00038758,111150.0,111140.0,0.69676304]
[1761307264352,0.00038758,111150.0,111140.0,1.09431188]
[1761307264552,0.00038758,111150.0,111140.0,1.40204171]
[1761307265014,0.00038758,111150.0,111140.0,1.09431188]
[1761307265515,0.00038758,111150.0,111140.0,1.40564193]
[1761307266272,1e-08,111150.0,111140.0,1.74564193]
[1761307266950,1e-08,111150.0,111140.0,1.74864193]
[1761307267126,1e-08,111150.0,111140.0,1.74964193]
[1761307267699,1e-08,111150.0,111140.0,1.74564193]
[1761307268015,1e-08,111150.0,111140.0,1.75064193]
[1761307268449,0.0004,111160.0,111140.0,1.75064193]
[1761307268450,1e-08,111160.0,111150.0,0.17993702]
[1761307268655,1e-08,111160.0,111150.0,0.90320939]
[1761307268852,1e-08,111160.0,111150.0,0.88521569]
[1761307269054,0.00033906,111160.0,111150.0,0.88521569]
[1761307269257,0.00033906,111160.0,111150.0,0.91221283]
[1761307270033,0.00033906,111160.0,111150.0,0.91521283]
[1761307270232,0.00033906,111160.0,111150.0,0.91621283]
[1761307270435,0.00033906,111160.0,111150.0,1.22394266]
[1761307271233,0.00033906,111160.0,111150.0,0.91621283]
[1761307272146,0.00033906,111160.0,111150.0,1.22394266]
[1761307273797,0.00033906,111160.0,111150.0,0.91621283]
[1761307275020,0.00033906,111160.0,111150.0,1.22394266]
[1761307275465,0.00033906,111160.0,111150.0,0.91621283]
[1761307276015,0.00033906,111160.0,111150.0,1.13273283]
[1761307276873,0.0004,111180.0,111170.0,0.17990465]
[1761307277103,0.0004,111180.0,111170.0,1.06213378]
[1761307277327,0.0004,111180.0,111170.0,1.04414332]
[1761307277766,0.0004,111180.0,111170.0,1.07113743]
[1761307278207,0.0004,111180.0,111170.0,1.07513743]
[1761307278824,0.0004,111180.0,111170.0,1.0835892]
[1761307280280,0.0004,111180.0,111170.0,0.76703152]
[1761307282617,0.00107794,111180.0,111170.0,0.76703152]
[1761307284939,0.00107794,111180.0,111170.0,1.07438527]
[1761307285254,0.00107794,111180.0,111170.0,0.76703152]
[1761307286003,0.00107794,111180.0,111170.0,0.45967777]
[1761307286204,0.00107794,111180.0,111170.0,0.60807152]
[1761307286429,0.00107794,111180.0,111170.0,0.58107741]
[1761307287113,0.00107794,111180.0,111170.0,0.4912584]
[1761307287277,0.00107794,111180.0,111170.0,0.18290465]
[1761307287697,0.00107794,111180.0,111170.0,0.17990465]
[1761307287942,0.00107794,111180.0,111170.0,0.18190465]
[1761307288144,0.2384864,111180.0,111170.0,0.18190465]
[1761307288647,0.44340616,111180.0,111170.0,0.002]
[1761307288850,0.75075991,111180.0,111170.0,0.002]
[1761307289052,0.78340616,111180.0,111170.0,0.002]
[1761307289260,1.2167612,111180.0,111170.0,0.002]
[1761307289681,1.2360695,111180.0,111170.0,0.002]
[1761307289829,0.51991841,111170.0,111150.0,0.18893387]
[1761307290034,0.33884083,111160.0,111150.0,0.18893387]
[1761307290234,0.15892,111160.0,111150.0,0.18893387]
[1761307291024,0.72715768,111180.0,111160.0,0.17992083]
[1761307291025,0.0004,111180.0,111160.0,0.17992083]
[1761307291206,0.39672846,111180.0,111160.0,0.48727458]
[1761307291377,0.39672846,111180.0,111160.0,0.17992083]
[1761307291550,0.21684,111180.0,111170.0,0.17990465]
[1761307293435,0.0004,111180.0,111170.0,0.17990465]
[1761307293616,0.0004,111180.0,111170.0,0.50524886]
[1761307293835,0.0014,111180.0,111170.0,0.4872584]
[1761307294040,0.0014,111180.0,111170.0,0.17990465]
[1761307298054,0.18128846,111180.0,111170.0,0.17990465]
[1761307298472,0.2229246,111180.0,111170.0,0.17990465]
[1761307298719,0.53027835,111180.0,111170.0,0.17990465]
[1761307299122,0.53027835,111180.0,111160.0,0.17992083]
[1761307299327,0.18128846,111180.0,111160.0,0.17992083]
[1761307299458,0.18128846,111180.0,111170.0,0.17990465]
[1761307299864,0.18028846,111180.0,111170.0,0.17990465]
[1761307301101,0.18028846,111180.0,111160.0,0.18092083]
[1761307301311,0.6461784,111170.0,111160.0,0.001]
[1761307301512,0.6461784,111170.0,111160.0,0.18092083]
[1761307301893,0.6461784,111170.0,111160.0,0.17992083]
[1761307302748,0.33882465,111170.0,111160.0,0.17992083]
[1761307302978,0.6461784,111170.0,111160.0,0.17992083]
[1761307303729,0.6461784,111170.0,111160.0,0.18092083]
[1761307304674,0.6465174,111170.0,111160.0,0.18092083]
[1761307304842,0.33916365,111170.0,111160.0,0.18092083]
[1761307305143,0.6465174,111170.0,111160.0,0.18092083]
[1761307307439,0.46661275,111170.0,111160.0,0.18092083]
[1761307307631,0.159259,111170.0,111160.0,0.18092083]
[1761307307785,0.000339,111170.0,111160.0,0.18092083]
[1761307307984,0.000339,111170.0,111160.0,0.48827458]
[1761307308184,0.159259,111170.0,111160.0,0.48827458]
[1761307308407,0.000339,111170.0,111160.0,0.48827458]
[1761307309163,0.000339,111170.0,111160.0,0.64719458]
[1761307309904,0.000339,111170.0,111160.0,0.33984083]
[1761307310165,0.000339,111170.0,111160.0,0.64719458]
[1761307310893,0.000339,111170.0,111160.0,0.73701359]
[1761307319372,0.000339,111170.0,111160.0,0.78701359]
[1761307323959,0.000339,111170.0,111160.0,0.23092083]
[1761307324138,0.000339,111170.0,111160.0,0.38980083]
[1761307324604,0.000339,111170.0,111160.0,0.33980083]
[1761307325497,0.000339,111170.0,111160.0,0.64715458]
[1761307327110,0.000339,111170.0,111160.0,0.33980083]
[1761307330579,0.000339,111170.0,111160.0,0.64715458]
[1761307335163,0.000339,111170.0,111160.0,0.33980083]
[1761307335364,0.000339,111170.0,111160.0,0.73697359]
[1761307336178,0.000339,111170.0,111160.0,0.73597359]
[1761307336586,0.000339,111170.0,111160.0,0.73797359]
[1761307340786,0.000339,111170.0,111160.0,1.04548324]
[1761307341675,0.000339,111170.0,111160.0,1.07247888]
[1761307342989,0.000339,111170.0,111160.0,1.07047888]
[1761307343179,0.000339,111170.0,111160.0,0.45861548]
[1761307343377,0.000339,111170.0,111160.0,1.07347888]
[1761307345548,0.000339,111170.0,111160.0,1.04648324]
[1761307348437,0.000339,111170.0,111160.0,1.35391494]
[1761307349040,1e-08,111170.0,111160.0,1.35391494]
[1761307349421,1e-08,111170.0,111160.0,1.35091494]
[1761307350395,1e-08,111170.0,111160.0,1.35191494]
[1761307350829,1e-08,111170.0,111160.0,1.35591494]
[1761307350994,1e-08,111170.0,111160.0,1.38290786]
[1761307351344,4.851e-05,111170.0,111160.0,1.38290786]
[1761307353190,4.851e-05,111170.0,111160.0,1.35591494]
[1761307355325,4.851e-05,111170.0,111160.0,1.40591494]
[1761307358355,4.851e-05,111170.0,111160.0,1.44209722]
[1761307358565,4.851e-05,111170.0,111160.0,2.38811428]
[1761307358993,4.851e-05,111170.0,111160.0,2.4151053]
[1761307359214,4.851e-05,111170.0,111160.0,2.39138334]
[1761307359418,4.851e-05,111170.0,111160.0,1.77651994]
[1761307359620,4.851e-05,111170.0,111160.0,1.8411127]
[1761307359834,4.851e-05,111170.0,111160.0,0.6113859]
[1761307360044,4.851e-05,111170.0,111160.0,1.533681]
[1761307360959,4.851e-05,111170.0,111160.0,2.4559761]
[1761307361175,4.851e-05,111170.0,111160.0,1.533681]
[1761307361617,4.851e-05,111170.0,111160.0,1.8411127]
[1761307361816,1e-08,111180.0,111170.0,1.64219975]
[1761307362029,1e-08,111180.0,111170.0,1.73201876]
[1761307363083,1e-08,111180.0,111170.0,1.73501876]
[1761307363840,1e-08,111180.0,111170.0,1.73201876]
[1761307364043,1e-08,111180.0,111170.0,1.73301876]
[1761307365241,1e-08,111180.0,111170.0,1.73701876]
[1761307365453,1e-08,111180.0,111170.0,1.42958706]
[1761307366644,1e-08,111180.0,111170.0,1.22958706]
[1761307366805,1e-08,111180.0,111170.0,1.44586706]
[1761307367699,0.00033895,111180.0,111170.0,1.44586706]
[1761307367875,0.00033895,111180.0,111170.0,0.61472366]
[1761307368095,0.00033895,111180.0,111170.0,1.44586706]
[1761307383035,0.00033895,111180.0,111170.0,0.27472366]
[1761307383240,0.00033895,111180.0,111170.0,0.74087536]
[1761307384223,0.00033895,111180.0,111170.0,1.04830706]
[1761307386185,0.00033895,111180.0,111170.0,0.74087536]
[1761307389710,0.00033895,111180.0,111170.0,1.04830706]
[1761307391630,0.00033895,111180.0,111170.0,1.35573876]
[1761307391976,1e-08,111180.0,111170.0,1.69573876]
[1761307392186,1e-08,111180.0,111170.0,1.89573876]
[1761307392834,1e-08,111180.0,111170.0,1.92087738]
[1761307393449,0.0004,111200.0,111190.0,0.17987229]
[1761307393648,0.0004485,111200.0,111190.0,1.1007947]
[1761307395298,0.0004485,111200.0,111190.0,1.1027947]
[1761307399116,0.00112625,111200.0,111190.0,1.1027947]
[1761307400853,0.00112625,111200.0,111190.0,0.79519959]
[1761307401186,0.00112625,111200.0,111190.0,0.80428429]
[1761307401377,0.00112625,111200.0,111190.0,0.79519959]
[1761307401729,0.00112625,111200.0,111190.0,0.79319959]
[1761307401931,0.00112625,111200.0,111190.0,0.80525456]
[1761307402147,0.00112625,111200.0,111190.0,0.57995959]
[1761307402370,0.00112625,111200.0,111190.0,0.79615959]
[1761307403385,0.00112625,111200.0,111190.0,0.4313713]
[1761307403594,0.00112625,111200.0,111190.0,0.73863959]
[1761307407772,0.00112625,111200.0,111190.0,0.73863959]
[1761307412388,0.00112625,111200.0,111190.0,0.34155229]
[1761307414571,0.00112625,111200.0,111190.0,0.64882058]
[1761307414748,0.00112625,111200.0,111190.0,0.34155229]
[1761307414985,0.00112625,111200.0,111190.0,0.64882058]
[1761307415782,0.00112625,111200.0,111190.0,0.34155229]
[1761307421883,0.00112625,111200.0,111190.0,0.64882058]
[1761307424028,0.00112625,111200.0,111190.0,0.34155229]
[1761307426702,0.00112625,111200.0,111190.0,0.64882058]
[1761307428035,0.00112625,111200.0,111190.0,0.34155229]
[1761307428737,0.00112625,111200.0,111190.0,0.64882058]
[1761307434221,0.00112625,111200.0,111190.0,0.73863959]
[1761307436945,0.00112625,111200.0,111190.0,0.76377821]
[1761307439342,0.00112625,111200.0,111190.0,0.73863959]
[1761307440176,0.00112625,111200.0,111190.0,0.57995959]
[1761307440384,0.00112625,111200.0,111190.0,0.79607959]
[1761307444257,0.00112625,111200.0,111190.0,0.57995959]
[1761307444494,0.00112625,111200.0,111190.0,0.79607959]
[1761307446826,0.00112625,111200.0,111190.0,0.34547102]
[1761307447036,0.00112625,111200.0,111190.0,0.34147229]
[1761307462701,0.00112625,111200.0,111190.0,0.64887785]
[1761307463834,0.00112625,111200.0,111190.0,0.34147229]
[1761307464040,0.00112625,111200.0,111190.0,0.64887785]
[1761307470946,0.00112625,111200.0,111190.0,0.34147229]
[1761307471151,0.00112625,111200.0,111190.0,0.64887785]
[1761307473154,0.00112625,111200.0,111190.0,0.34147229]
[1761307473358,0.00112625,111200.0,111190.0,0.64887785]
[1761307476070,0.00112625,111200.0,111190.0,0.73869686]
[1761307482829,0.00112625,111200.0,111190.0,0.4312913]
[1761307483030,0.00112625,111200.0,111190.0,0.73869686]
[1761307495021,0.00112625,111200.0,111190.0,0.4312913]
[1761307495231,0.00112625,111200.0,111190.0,0.73869686]
[1761307495598,0.00112625,111200.0,111190.0,0.4312913]
[1761307495866,0.00112625,111200.0,111190.0,0.73869686]
[1761307497515,0.00112625,111200.0,111190.0,0.34135229]
[1761307497922,0.00112625,111200.0,111190.0,0.64875785]
[1761307500782,0.00112625,111200.0,111190.0,0.34135229]
[1761307500984,0.00112625,111200.0,111190.0,0.64875785]
[1761307506153,0.00112625,111200.0,111190.0,0.34135229]
[1761307506357,0.00112625,111200.0,111190.0,0.64875785]
[1761307509240,0.00112625,111200.0,111190.0,0.34135229]
[1761307509472,0.00112625,111200.0,111190.0,0.64875785]
[1761307512901,0.00112625,111200.0,111190.0,0.73857686]
[1761307514419,0.00112625,111200.0,111190.0,1.04598242]
[1761307514849,0.00112625,111200.0,111190.0,0.73857686]
[1761307515698,0.00112625,111200.0,111190.0,0.58009686]
[1761307515874,0.00112625,111200.0,111190.0,0.4886513]
[1761307516084,0.00112625,111200.0,111190.0,0.79605686]
[1761307517842,0.00112625,111200.0,111190.0,0.64871785]
[1761307519064,0.00112625,111200.0,111190.0,0.73853686]
[1761307522617,0.00112625,111200.0,111190.0,1.04594242]
[1761307522963,0.00112625,111200.0,111190.0,0.73840683]
[1761307524064,0.00112625,111200.0,111190.0,0.74200557]
[1761307526965,0.00112625,111200.0,111190.0,1.08200557]
[1761307527417,1e-08,111200.0,111190.0,1.5892811]
[1761307527564,1e-08,111200.0,111190.0,1.28200557]
[1761307530682,1e-08,111200.0,111190.0,0.97473004]
[1761307530890,1e-08,111200.0,111190.0,1.28200557]
[1761307531316,1e-08,111200.0,111190.0,1.31818785]
[1761307533508,1e-08,111200.0,111190.0,1.01091232]
[1761307533885,1e-08,111200.0,111190.0,1.31818785]
[1761307545026,1e-08,111200.0,111190.0,1.01091232]
[1761307545225,1e-08,111200.0,111190.0,1.31818785]
[1761307547287,1e-08,111200.0,111190.0,1.51818785]
[1761307547643,1e-08,111200.0,111190.0,1.54332647]
[1761307550402,1e-08,111200.0,111190.0,1.38488647]
[1761307550607,1e-08,111200.0,111190.0,1.57558785]
[1761307555075,1e-08,111200.0,111190.0,1.64018061]
[1761307555490,1e-08,111200.0,111190.0,1.57558785]
[1761307555694,1e-08,111200.0,111190.0,1.64018061]
[1761307571402,1e-08,111200.0,111190.0,3.96976143]
[1761307571610,1e-08,111200.0,111190.0,3.91516866]
[1761307571954,1e-08,111200.0,111190.0,3.99604685]
[1761307572159,1e-08,111200.0,111190.0,3.38149579]
[1761307572485,1e-08,111200.0,111190.0,3.99304685]
[1761307572891,1e-08,111200.0,111190.0,3.59990604]
[1761307573096,1e-08,111200.0,111190.0,3.57654785]
[1761307573296,1e-08,111200.0,111190.0,3.48381551]
[1761307573496,1e-08,111200.0,111190.0,1.64209551]
[1761307573710,1e-08,111200.0,111190.0,1.42629551]
[1761307573922,1e-08,111200.0,111190.0,1.64209551]
[1761307574610,1e-08,111200.0,111190.0,0.27829004]
[1761307574833,1e-08,111200.0,111190.0,0.80136557]
[1761307576199,1e-08,111200.0,111190.0,0.49409004]
[1761307576444,1e-08,111200.0,111190.0,0.80136557]
[1761307577124,1e-08,111200.0,111190.0,0.62149328]
[1761307577336,1e-08,111200.0,111190.0,0.61789454]
[1761307577547,1e-08,111200.0,111190.0,0.79776683]
[1761307578209,1e-08,111200.0,111190.0,0.4904913]
[1761307578633,1e-08,111200.0,111190.0,0.31057901]
[1761307579458,1e-08,111200.0,111190.0,0.25305901]
[1761307579812,1e-08,111200.0,111190.0,0.005]
[1761307579813,0.48713165,111200.0,111190.0,0.005]
[1761307580025,0.17988846,111180.0,111170.0,0.02699187]
[1761307580445,0.48716399,111180.0,111170.0,0.02699187]
[1761307580879,0.48716399,111180.0,111150.0,0.42268699]
[1761307581050,0.02700011,111180.0,111160.0,0.57701511]
[1761307581249,0.17988882,111180.0,111160.0,0.08981901]
[1761307581453,0.17990465,111170.0,111150.0,0.21576]
[1761307581707,0.2104713,111180.0,111150.0,0.79279117]
[1761307581913,0.17990615,111170.0,111150.0,0.79279117]
[1761307582117,0.2104713,111180.0,111160.0,0.003]
[1761307582273,0.18888324,111180.0,111160.0,0.003]
[1761307582478,0.18888324,111180.0,111150.0,0.79279117]
[1761307582832,0.17990694,111170.0,111150.0,0.31057901]
[1761307583070,0.17990694,111170.0,111150.0,0.30657901]
[1761307583181,0.17990694,111170.0,111150.0,0.79379106]
[1761307583387,0.18888324,111180.0,111160.0,0.003]
[1761307584608,0.18888324,111180.0,111150.0,0.82079175]
[1761307584808,0.18888324,111180.0,111150.0,0.8210772]
[1761307585017,0.21588117,111190.0,111160.0,0.59343504]
[1761307585217,0.73868455,111190.0,111160.0,0.5772973]
[1761307585425,0.73868455,111190.0,111170.0,0.01799046]
[1761307586139,0.17988846,111180.0,111170.0,0.32555144]
[1761307586339,0.17988877,111180.0,111160.0,0.27373632]
[1761307586554,0.18888048,111190.0,111160.0,0.5772973]
[1761307586724,0.18888048,111190.0,111170.0,0.01799046]
[1761307587174,0.17988846,111180.0,111170.0,0.01799046]
[1761307587926,0.17988846,111180.0,111170.0,0.01999046]
[1761307588166,0.17988846,111180.0,111160.0,0.5782973]
[1761307588376,0.17988846,111180.0,111170.0,0.002]
[1761307589488,0.34716048,111190.0,111170.0,0.002]
[1761307589684,0.43697949,111190.0,111170.0,0.002]
[1761307590278,0.17988846,111180.0,111170.0,0.002]
[1761307590662,0.48744944,111180.0,111170.0,0.002]
[1761307591027,0.48744944,111180.0,111160.0,0.08981901]
[1761307591160,0.48744944,111180.0,111170.0,0.002]
[1761307591603,0.48744944,111180.0,111160.0,0.39737999]
[1761307591808,0.48744944,111180.0,111170.0,0.002]
[1761307592651,0.48744944,111180.0,111160.0,0.39737999]
[1761307593176,0.17988846,111180.0,111160.0,0.57730017]
[1761307593393,0.17988846,111180.0,111160.0,0.39737999]
[1761307593921,0.17988846,111180.0,111160.0,0.39837999]
[1761307594559,0.48744944,111180.0,111160.0,0.40137999]
[1761307595006,0.48744944,111180.0,111160.0,0.55965999]
[1761307595368,0.57091043,111180.0,111160.0,0.16228]
[1761307596195,0.48744944,111180.0,111160.0,0.46984098]
[1761307596574,0.48744944,111180.0,111160.0,0.16228]
[1761307596774,0.48744944,111180.0,111160.0,0.46984098]
[1761307597716,0.17988846,111180.0,111160.0,0.46984098]
[1761307597917,0.48744944,111180.0,111160.0,0.46984098]
[1761307598122,0.57091043,111180.0,111160.0,0.46984098]